fUSD/lending_fUSD_20250512
["ID","MTS","AMOUNT","RATE_DAILY","PERIOD"]
[360864271,1747080634883,-400.0,0.00013698,2]
[360864272,1747080634893,-400.0,0.00013698,2]
[360864273,1747080634902,-400.0,0.00013698,2]
[360864274,1747080634911,-450.0,0.00013698,2]
[360864275,1747080634921,-450.0,0.00013698,2]
[360864276,1747080634930,-400.0,0.00013698,2]
[360864277,1747080634939,-400.0,0.00013698,2]
[360864278,1747080634948,-400.0,0.00013698,2]
[360864279,1747080634957,-450.0,0.00013698,2]
[360864280,1747080634966,-400.0,0.00013698,2]
[360864281,1747080634975,-400.0,0.00013698,2]
[360864282,1747080634984,-450.0,0.00013698,2]
[360864283,1747080634993,-400.0,0.00013698,2]
[360864284,1747080635004,-258.69226686,0.00013698,2]
[360864285,1747080635014,-400.0,0.00013698,2]
[360864286,1747080635023,-450.0,0.00013698,2]
[360864287,1747080635033,-400.0,0.00013698,2]
[360864288,1747080635043,-450.0,0.00013698,2]
[360864289,1747080635056,-188.85,0.00013698,2]
[360864290,1747080635066,-500.0,0.00013698,2]
[360864291,1747080635075,-152.68,0.00013698,2]
[360864292,1747080635086,-450.0,0.00013698,2]
[360864293,1747080635097,-450.0,0.00013698,2]
[360864294,1747080635106,-450.0,0.00013698,2]
[360864295,1747080635115,-400.0,0.00013698,2]
[360864296,1747080635127,-400.0,0.00013698,2]
[360864297,1747080635136,-400.0,0.00013698,2]
[360864298,1747080635145,-450.0,0.00013698,2]
[360864299,1747080635155,-400.0,0.00013698,2]
[360864300,1747080635165,-450.0,0.00013698,2]
[360864301,1747080635174,-450.0,0.00013698,2]
[360864302,1747080635184,-533.39,0.00013698,2]
[360864303,1747080635194,-450.0,0.00013698,2]
[360864304,1747080635204,-400.0,0.00013698,2]
[360864305,1747080635214,-450.0,0.00013698,2]
[360864306,1747080635224,-400.0,0.00013698,2]
[360864307,1747080635234,-520.9,0.00013698,2]
[360864308,1747080635243,-450.0,0.00013698,2]
[360864309,1747080635252,-400.0,0.00013698,2]
[360864310,1747080635265,-543.14022503,0.00013698,2]
[360864311,1747080635274,-450.0,0.00013698,2]
[360864312,1747080635283,-450.0,0.00013698,2]
[360864313,1747080635293,-400.0,0.00013698,2]
[360864314,1747080635302,-450.0,0.00013698,2]
[360864315,1747080635312,-518.34,0.00013698,2]
[360864316,1747080635321,-400.0,0.00013698,2]
[360864317,1747080635334,-260.32,0.00013698,2]
[360864318,1747080635344,-431.53903952,0.00013698,2]
[360864319,1747080635353,-450.0,0.00013698,2]
[360864320,1747080635362,-400.0,0.00013698,2]
[360864321,1747080635371,-400.0,0.00013698,2]
[360864322,1747080635381,-450.0,0.00013698,2]
[360864323,1747080635390,-450.0,0.00013698,2]
[360864324,1747080635400,-400.0,0.00013698,2]
[360864325,1747080635410,-450.0,0.00013698,2]
[360864326,1747080635420,-1876.0165536,0.00013698,2]
[360864327,1747080635429,-450.0,0.00013698,2]
[360864328,1747080635439,-450.0,0.00013698,2]
[360864329,1747080635449,-400.0,0.00013698,2]
[360864330,1747080635459,-400.0,0.00013698,2]
[360864331,1747080635469,-400.0,0.00013698,2]
[360864332,1747080635478,-450.0,0.00013698,2]
[360864333,1747080635488,-400.0,0.00013698,2]
[360864334,1747080635498,-400.0,0.00013698,2]
[360864335,1747080635507,-173.94,0.00013698,2]
[360864336,1747080635518,-400.0,0.00013698,2]
[360864337,1747080635527,-450.0,0.00013698,2]
[360864338,1747080635536,-280.13096752,0.00013698,2]
[360864339,1747080635545,-450.0,0.00013698,2]
[360864340,1747080635555,-400.0,0.00013698,2]
[360864341,1747080635564,-400.0,0.00013698,2]
[360864342,1747080635573,-400.0,0.00013698,2]
[360864343,1747080635587,-450.0,0.00013698,2]
[360864344,1747080635596,-400.0,0.00013698,2]
[360864345,1747080635605,-400.0,0.00013698,2]
[360864346,1747080635615,-450.0,0.00013698,2]
[360864347,1747080635625,-500.0,0.00013698,2]
[360864348,1747080635634,-450.0,0.00013698,2]
[360864349,1747080635643,-181.3221706,0.00013698,2]
[360864350,1747080635652,-400.0,0.00013698,2]
[360864351,1747080635662,-400.0,0.00013698,2]
[360864352,1747080635671,-328.33,0.00013698,2]
[360864353,1747080635681,-400.0,0.00013698,2]
[360864354,1747080635690,-450.0,0.00013698,2]
[360864355,1747080635699,-400.0,0.00013698,2]
[360864356,1747080635709,-450.0,0.00013698,2]
[360864357,1747080635719,-400.0,0.00013698,2]
[360864358,1747080635728,-222.18794851,0.00013698,2]
[360864359,1747080635738,-400.0,0.00013698,2]
[360864360,1747080635747,-450.0,0.00013698,2]
[360864361,1747080635756,-190.92,0.00013698,2]
[360864362,1747080635767,-450.0,0.00013698,2]
[360864363,1747080635776,-400.0,0.00013698,2]
[360864364,1747080635785,-450.0,0.00013698,2]
[360864365,1747080635794,-500.0,0.00013698,2]
[360864366,1747080635804,-329.7,0.00013698,2]
[360864367,1747080635813,-479.49,0.00013698,2]
[360864368,1747080635823,-400.0,0.00013698,2]
[360864369,1747080635835,-451.47,0.00013698,2]
[360864370,1747080635844,-400.0,0.00013698,2]
[360864371,1747080635854,-500.0,0.00013698,2]
[360864372,1747080635864,-400.0,0.00013698,2]
[360864373,1747080635874,-400.0,0.00013698,2]
[360864374,1747080635883,-450.0,0.00013698,2]
[360864375,1747080635893,-400.0,0.00013698,2]
[360864376,1747080635903,-549.08,0.00013698,2]
[360864377,1747080635913,-400.0,0.00013698,2]
[360864378,1747080635922,-400.0,0.00013698,2]
[360864379,1747080635932,-400.0,0.00013698,2]
[360864380,1747080635941,-400.0,0.00013698,2]
[360864381,1747080635952,-400.0,0.00013698,2]
[360864382,1747080635961,-400.0,0.00013698,2]
[360864383,1747080635970,-236.25,0.00013698,2]
[360864384,1747080635979,-400.0,0.00013698,2]
[360864385,1747080635988,-400.0,0.00013698,2]
[360864386,1747080635998,-450.0,0.00013698,2]
[360864387,1747080636007,-400.0,0.00013698,2]
[360864388,1747080636016,-450.0,0.00013698,2]
[360864389,1747080636026,-400.0,0.00013698,2]
[360864390,1747080636035,-546.15,0.00013698,2]
[360864391,1747080636045,-400.0,0.00013698,2]
[360864392,1747080636059,-400.0,0.00013698,2]
[360864393,1747080636069,-400.0,0.00013698,2]
[360864394,1747080636079,-400.0,0.00013698,2]
[360864395,1747080636088,-400.0,0.00013698,2]
[360864396,1747080636099,-400.0,0.00013698,2]
[360864397,1747080636108,-400.0,0.00013698,2]
[360864398,1747080636117,-184.32,0.00013698,2]
[360864399,1747080636128,-400.0,0.00013698,2]
[360864400,1747080636138,-207.26,0.00013698,2]
[360864401,1747080636147,-400.0,0.00013698,2]
[360864402,1747080636157,-564.13,0.00013698,2]
[360864403,1747080636166,-400.0,0.00013698,2]
[360864404,1747080636176,-400.0,0.00013698,2]
[360864405,1747080636186,-400.0,0.00013698,2]
[360864406,1747080636197,-400.0,0.00013698,2]
[360864407,1747080636207,-400.0,0.00013698,2]
[360864408,1747080636218,-400.0,0.00013698,2]
[360864409,1747080636228,-498.52,0.00013698,2]
[360864410,1747080636238,-255.28,0.00013698,2]
[360864411,1747080636248,-400.0,0.00013698,2]
[360864412,1747080636258,-400.9,0.00013698,2]
[360864413,1747080636268,-185.96,0.00013698,2]
[360864414,1747080636278,-292.06,0.00013698,2]
[360864415,1747080636287,-400.0,0.00013698,2]
[360864416,1747080636298,-450.0,0.00013698,2]
[360864417,1747080636307,-1153.59,0.00013698,2]
[360864418,1747080636317,-172.69,0.00013698,2]
[360864419,1747080636327,-400.0,0.00013698,2]
[360864420,1747080636338,-2710.23,0.00013698,2]
[360864421,1747080636347,-400.0,0.00013698,2]
[360864422,1747080636357,-400.0,0.00013698,2]
[360864423,1747080636366,-477.06,0.00013698,2]
[360864424,1747080636375,-450.0,0.00013698,2]
[360864425,1747080636384,-400.0,0.00013698,2]
[360864426,1747080636395,-450.0,0.00013698,2]
[360864427,1747080636405,-459.42,0.00013698,2]
[360864428,1747080636414,-1290.87,0.00013698,2]
[360864429,1747080636424,-400.0,0.00013698,2]
[360864430,1747080636433,-584.59,0.00013698,2]
[360864431,1747080636443,-1350.34,0.00013698,2]
[360864432,1747080636453,-400.0,0.00013698,2]
[360864433,1747080636463,-400.0,0.00013698,2]
[360864434,1747080636473,-400.0,0.00013698,2]
[360864435,1747080636483,-400.0,0.00013698,2]
[360864436,1747080636492,-483.09,0.00013698,2]
[360864437,1747080636501,-23494.29,0.00013698,2]
[360864438,1747080636510,-411.93,0.00013698,2]
[360864439,1747080636520,-1046.17,0.00013698,2]
[360864440,1747080636529,-256.85,0.00013698,2]
[360864441,1747080636539,-405.5264466,0.00013698,2]
[360864442,1747080636548,-400.0,0.00013698,2]
[360864443,1747080636558,-400.0,0.00013698,2]
[360864444,1747080636568,-450.0,0.00013698,2]
[360864445,1747080636580,-400.0,0.00013698,2]
[360864446,1747080636589,-400.0,0.00013698,2]
[360864447,1747080636599,-450.0,0.00013698,2]
[360864448,1747080636608,-400.0,0.00013698,2]
[360864449,1747080636618,-428.98,0.00013698,2]
[360864450,1747080636627,-400.0,0.00013698,2]
[360864451,1747080636636,-469.07,0.00013698,2]
[360864452,1747080636646,-400.0,0.00013698,2]
[360864453,1747080636656,-400.0,0.00013698,2]
[360864454,1747080636666,-400.0,0.00013698,2]
[360864455,1747080636675,-400.0,0.00013698,2]
[360864456,1747080636684,-450.0,0.00013698,2]
[360864457,1747080636694,-400.0,0.00013698,2]
[360864458,1747080636703,-497.5,0.00013698,2]
[360864459,1747080636713,-400.0,0.00013698,2]
[360864460,1747080636722,-350.0,0.00013698,2]
[360864461,1747080636733,-486.27,0.00013698,2]
[360864462,1747080636743,-400.0,0.00013698,2]
[360864463,1747080636753,-400.0,0.00013698,2]
[360864464,1747080636762,-400.0,0.00013698,2]
[360864465,1747080636772,-565.33,0.00013698,2]
[360864466,1747080636781,-1631.51,0.00013698,2]
[360864467,1747080636790,-400.0,0.00013698,2]
[360864468,1747080636800,-400.0,0.00013698,2]
[360864469,1747080636809,-1501.74,0.00013698,2]
[360864470,1747080636819,-400.0,0.00013698,2]
[360864471,1747080636831,-400.0,0.00013698,2]
[360864472,1747080636841,-522.5,0.00013698,2]
[360864473,1747080636851,-817.17,0.00013698,2]
[360864474,1747080636863,-400.0,0.00013698,2]
[360864475,1747080636872,-609.77,0.00013698,2]
[360864476,1747080636881,-400.0,0.00013698,2]
[360864477,1747080636891,-33252.58,0.00013698,2]
[360864478,1747080636900,-400.0,0.00013698,2]
[360864479,1747080636909,-379.62,0.00013698,2]
[360864480,1747080636919,-400.0,0.00013698,2]
[360864481,1747080636928,-400.0,0.00013698,2]
[360864482,1747080636938,-400.0,0.00013698,2]
[360864483,1747080636947,-400.0,0.00013698,2]
[360864484,1747080636957,-400.0,0.00013698,2]
[360864485,1747080636966,-400.0,0.00013698,2]
[360864486,1747080636975,-657.94,0.00013698,2]
[360864487,1747080636985,-268.28920886,0.00013698,2]
[360864488,1747080636995,-400.0,0.00013698,2]
[360864489,1747080637004,-400.0,0.00013698,2]
[360864490,1747080637014,-2338.38,0.00013698,2]
[360864491,1747080637023,-400.0,0.00013698,2]
[360864492,1747080637183,-585.31612133,0.00013698,2]
[360864493,1747080637193,-400.0,0.00013698,2]
[360864494,1747080637202,-511.18,0.00013698,2]
[360864495,1747080637211,-400.0,0.00013698,2]
[360864496,1747080637220,-196.371395,0.00013698,2]
[360864497,1747080637230,-400.0,0.00013698,2]
[360864498,1747080637239,-400.0,0.00013698,2]
[360864499,1747080637248,-400.0,0.00013698,2]
[360864500,1747080637257,-400.0,0.00013698,2]
[360864501,1747080637266,-400.0,0.00013698,2]
[360864502,1747080637276,-459.34,0.00013698,2]
[360864503,1747080637285,-520.61,0.00013698,2]
[360864504,1747080637295,-400.0,0.00013698,2]
[360864505,1747080637304,-724.54,0.00013698,2]
[360864506,1747080637314,-400.0,0.00013698,2]
[360864507,1747080637324,-400.0,0.00013698,2]
[360864508,1747080637335,-1024.97,0.00013698,2]
[360864509,1747080637344,-400.0,0.00013698,2]
[360864510,1747080637354,-400.0,0.00013698,2]
[360864511,1747080637363,-400.0,0.00013698,2]
[360864512,1747080637372,-400.0,0.00013698,2]
[360864513,1747080637382,-8072.07,0.00013698,2]
[360864514,1747080637391,-432.2,0.00013698,2]
[360864515,1747080637400,-400.0,0.00013698,2]
[360864516,1747080637409,-1140.52,0.00013698,2]
[360864517,1747080637418,-400.0,0.00013698,2]
[360864518,1747080637428,-609.76,0.00013698,2]
[360864519,1747080637437,-459.49,0.00013698,2]
[360864520,1747080637446,-400.0,0.00013698,2]
[360864521,1747080637456,-400.0,0.00013698,2]
[360864522,1747080637465,-400.0,0.00013698,2]
[360864523,1747080637474,-450.0,0.00013698,2]
[360864524,1747080637484,-1306.98,0.00013698,2]
[360864525,1747080637493,-1107.27,0.00013698,2]
[360864526,1747080637503,-400.0,0.00013698,2]
[360864527,1747080637513,-450.0,0.00013698,2]
[360864528,1747080637523,-512.01,0.00013698,2]
[360864529,1747080637533,-400.0,0.00013698,2]
[360864530,1747080637543,-487.76,0.00013698,2]
[360864531,1747080637552,-400.0,0.00013698,2]
[360864532,1747080637562,-481.15,0.00013698,2]
[360864533,1747080637572,-405.82,0.00013698,2]
[360864534,1747080637581,-400.0,0.00013698,2]
[360864535,1747080637591,-400.0,0.00013698,2]
[360864536,1747080637601,-419.06,0.00013698,2]
[360864537,1747080637610,-400.0,0.00013698,2]
[360864539,1747080637620,-400.0,0.00013698,2]
[360864540,1747080637629,-400.0,0.00013698,2]
[360864541,1747080637638,-1017.02,0.00013698,2]
[360864542,1747080637648,-400.0,0.00013698,2]
[360864543,1747080637657,-400.0,0.00013698,2]
[360864544,1747080637666,-400.0,0.00013698,2]
[360864545,1747080637675,-150.0,0.00013698,2]
[360864546,1747080637684,-400.0,0.00013698,2]
[360864547,1747080637693,-400.0,0.00013698,2]
[360864548,1747080637704,-400.0,0.00013698,2]
[360864549,1747080637713,-1111.77,0.00013698,2]
[360864550,1747080637723,-336.94246137,0.00013698,2]
[360864551,1747080637732,-400.0,0.00013698,2]
[360864552,1747080637741,-400.0,0.00013698,2]
[360864553,1747080637752,-400.0,0.00013698,2]
[360864554,1747080637761,-788.96,0.00013698,2]
[360864555,1747080637771,-457.06,0.00013698,2]
[360864556,1747080637781,-400.0,0.00013698,2]
[360864557,1747080637790,-536.12930375,0.00013698,2]
[360864558,1747080637800,-151.0,0.00013699,2]
[360864559,1747080637809,-365.11,0.00013699,2]
[360864560,1747080637819,-350.71,0.00013699,2]
[360864561,1747080637830,-150.0,0.00013699,2]
[360864562,1747080637840,-500.0,0.00013699,2]
[360864563,1747080637849,-434.41264878,0.00013699,2]
[360864566,1747080638701,-186.06350692,0.00013598,2]
[360864567,1747080638711,-616.55,0.00013698,2]
[360864568,1747080638720,-938.0082768,0.00013698,2]
[360864569,1747080638730,-65.58735122,0.00013699,2]
[360864570,1747080638739,-500.0,0.00013699,2]
[360864571,1747080638749,-581.58170777,0.00013699,2]
[360864572,1747080638758,-500.0,0.00013699,2]
[360864573,1747080638768,-500.0,0.00013699,2]
[360864575,1747080638778,-500.0,0.00013699,2]
[360864577,1747080638787,-170.29338786,0.00013699,2]
[360864579,1747080638797,-1164.65234931,0.000137,2]
[360864583,1747080640218,-375.10496919,0.00013681,2]
[360864584,1747080640235,-770.89503081,0.00013681,2]
[360864585,1747080640245,-400.0,0.00013698,2]
[360864586,1747080640255,-2314.64910571,0.000137,2]
[360864591,1747080643169,-400.0,0.00013698,2]
[360864592,1747080643179,-152.58,0.00013698,2]
[360864593,1747080643189,-438.84,0.00013698,2]
[360864594,1747080643199,-400.0,0.00013698,2]
[360864595,1747080643209,-400.0,0.00013698,2]
[360864596,1747080643218,-12103.70160366,0.000137,2]
[360864597,1747080643277,-699.59372529,0.000137,2]
[360864638,1747081375927,650.89,0.00010786,2]
[360864639,1747081431508,150.0,0.00013699,7]
[360864708,1747081832214,-200.0,0.00012695,2]
[360864709,1747081832224,-302.57310004,0.00012696,2]
[360864710,1747081832256,-92.10689996,0.00012696,2]
[360864711,1747081832266,-200.0,0.00012715,2]
[360864712,1747081832276,-200.0,0.00012716,2]
[360864713,1747081832289,-113.59329524,0.00012738,2]
[360864714,1747081832301,-886.40670476,0.00012738,2]
[360864715,1747081832310,-170.96,0.00012801,2]
[360864716,1747081832319,-650.89,0.00013049,2]
[360864717,1747081832328,-1200.0,0.00013199,2]
[360864718,1747081832338,-6835.03,0.000132,2]
[360864719,1747081832347,-207.4,0.00013338,2]
[360864721,1747081832357,-176.00155636,0.000134,2]
[360864724,1747081832372,-176.79844364,0.000134,2]
[360864726,1747081832381,-524.58160421,0.00013598,2]
[360864728,1747081832393,-298.1025574,0.00013598,2]
[360864730,1747081832404,-369.26884223,0.00013598,2]
[360864731,1747081832414,-299.99,0.00013598,2]
[360864732,1747081832423,-250.7917,0.00013598,2]
[360864733,1747081832437,-242.15103176,0.00013598,2]
[360864783,1747081837967,-610.10567313,0.00012693,2]
[360864787,1747081837978,-2257.84896824,0.00013598,2]
[360864790,1747081837988,-435.21268955,0.000136,2]
[360864795,1747081838026,-548.35541045,0.000136,2]
[360864797,1747081838035,-591.08718816,0.00013628,2]
[360864799,1747081838044,-162.49009831,0.00013629,2]
[360864801,1747081838054,-668.65185757,0.0001369,2]
[360864803,1747081838064,-376.2627764,0.00013698,2]
[360864806,1747081838083,-23.7372236,0.00013698,2]
[360864808,1747081838093,-400.0,0.00013698,2]
[360864811,1747081838103,-305.93,0.00013698,2]
[360864812,1747081838112,-400.0,0.00013698,2]
[360864814,1747081838122,-350.14475268,0.00013698,2]
[360864835,1747081840412,-173.25006391,0.00013638,2]
[360864836,1747081840422,-49.85524732,0.00013698,2]
[360864837,1747081840435,-178.63360781,0.00013698,2]
[360864838,1747081840447,-400.0,0.00013698,2]
[360864839,1747081840456,-400.0,0.00013698,2]
[360864840,1747081840465,-400.0,0.00013698,2]
[360864841,1747081840476,-331.26297631,0.00013698,2]
[360864842,1747081840486,-400.0,0.00013698,2]
[360864843,1747081840495,-373.31842006,0.00013698,2]
[360864844,1747081840506,-400.0,0.00013698,2]
[360864845,1747081840519,-250.0,0.00013698,2]
[360864846,1747081840529,-400.0,0.00013698,2]
[360864847,1747081840539,-400.0,0.00013698,2]
[360864848,1747081840549,-400.0,0.00013698,2]
[360864849,1747081840558,-400.0,0.00013698,2]
[360864850,1747081840568,-400.0,0.00013698,2]
[360864851,1747081840577,-349.87236364,0.00013698,2]
[360864852,1747081840587,-525.62325226,0.00013698,2]
[360864853,1747081840597,-400.0,0.00013698,2]
[360864854,1747081840607,-400.0,0.00013698,2]
[360864856,1747081840617,-400.0,0.00013698,2]
[360864858,1747081840626,-254.30684058,0.00013698,2]
[360864859,1747081840639,-145.69315942,0.00013698,2]
[360864860,1747081840648,-400.0,0.00013698,2]
[360864861,1747081840658,-400.0,0.00013698,2]
[360864862,1747081840668,-266.59,0.00013698,2]
[360864864,1747081840677,-400.0,0.00013698,2]
[360864865,1747081840686,-210.96,0.00013698,2]
[360864866,1747081840696,-400.0,0.00013698,2]
[360864867,1747081840705,-400.0,0.00013698,2]
[360864868,1747081840715,-400.0,0.00013698,2]
[360864869,1747081840725,-500.0,0.00013698,2]
[360864870,1747081840735,-400.0,0.00013698,2]
[360864871,1747081840744,-380.11,0.00013698,2]
[360864872,1747081840753,-391.20658591,0.00013698,2]
[360864873,1747081840766,-184.98,0.00013698,2]
[360864874,1747081840776,-400.0,0.00013698,2]
[360864875,1747081840785,-400.0,0.00013698,2]
[360864876,1747081840794,-400.0,0.00013698,2]
[360864877,1747081840804,-400.0,0.00013698,2]
[360864878,1747081840813,-500.0,0.00013698,2]
[360864879,1747081840822,-309.29,0.00013698,2]
[360864880,1747081840831,-500.0,0.00013698,2]
[360864881,1747081840840,-400.0,0.00013698,2]
[360864882,1747081840850,-269.26,0.00013698,2]
[360864883,1747081840859,-500.0,0.00013698,2]
[360864884,1747081840869,-400.0,0.00013698,2]
[360864885,1747081840879,-500.0,0.00013698,2]
[360864886,1747081840888,-141.91025467,0.00013698,2]
[360864887,1747081840900,-278.34544682,0.00013698,2]
[360864888,1747081840911,-15.60429851,0.00013698,2]
[360864889,1747081840919,-465.07593557,0.00013698,2]
[360864890,1747081840931,-34.92406443,0.00013698,2]
[360864891,1747081840940,-330.9147642,0.00013698,2]
[360864892,1747081840951,-169.0852358,0.00013698,2]
[360864893,1747081840960,-500.0,0.00013698,2]
[360864894,1747081840969,-500.0,0.00013698,2]
[360864895,1747081840978,-340.64,0.00013698,2]
[360864896,1747081840988,-500.0,0.00013698,2]
[360864897,1747081840998,-400.0,0.00013698,2]
[360864898,1747081841010,-500.0,0.00013698,2]
[360864899,1747081841019,-500.0,0.00013698,2]
[360864900,1747081841028,-400.0,0.00013698,2]
[360864901,1747081841038,-400.0,0.00013698,2]
[360864902,1747081841046,-400.0,0.00013698,2]
[360864903,1747081841056,-497.08,0.00013698,2]
[360864904,1747081841066,-412.82253337,0.00013698,2]
[360864905,1747081841075,-400.0,0.00013698,2]
[360864906,1747081841084,-500.0,0.00013698,2]
[360864907,1747081841093,-400.0,0.00013698,2]
[360864908,1747081841103,-400.0,0.00013698,2]
[360864909,1747081841112,-500.0,0.00013698,2]
[360864910,1747081841121,-400.0,0.00013698,2]
[360864911,1747081841130,-92.37020644,0.00013698,2]
[360864912,1747081841142,-407.62979356,0.00013698,2]
[360864913,1747081841151,-221.17322759,0.00013698,2]
[360864919,1747081843964,-178.82677241,0.00013698,2]
[360864920,1747081843975,-262.36170797,0.00013698,2]
[360864924,1747081845977,-137.63829203,0.00013698,2]
[360864925,1747081845987,-513.3,0.00013698,2]
[360864926,1747081845997,-333.18,0.00013698,2]
[360864927,1747081846007,-524.08,0.00013698,2]
[360864928,1747081846019,-509.68,0.00013698,2]
[360864929,1747081846029,-226.65553292,0.00013698,2]
[360864930,1747081846306,-223.34446708,0.00013698,2]
[360864931,1747081846315,-400.0,0.00013698,2]
[360864932,1747081846325,-5.70551927,0.00013698,2]
[360864933,1747081846471,-494.29448073,0.00013698,2]
[360864934,1747081846481,-285.13427178,0.00013698,2]
[360864935,1747081846491,-173.94,0.00013698,2]
[360864936,1747081846501,-400.0,0.00013698,2]
[360864937,1747081846510,-400.0,0.00013698,2]
[360864938,1747081846522,-400.0,0.00013698,2]
[360864939,1747081846531,-370.34,0.00013698,2]
[360864941,1747081846541,-400.0,0.00013698,2]
[360864943,1747081846550,-400.0,0.00013698,2]
[360864944,1747081846561,-400.0,0.00013698,2]
[360864945,1747081846570,-234.13750042,0.00013698,2]
[360864946,1747081846580,-400.0,0.00013698,2]
[360864947,1747081846590,-397.28572743,0.00013698,2]
[360864948,1747081846600,-400.0,0.00013698,2]
[360864949,1747081846610,-400.0,0.00013698,2]
[360864950,1747081846619,-400.0,0.00013698,2]
[360864951,1747081846628,-400.0,0.00013698,2]
[360864952,1747081846637,-400.0,0.00013698,2]
[360864953,1747081846647,-500.0,0.00013698,2]
[360864954,1747081846656,-400.0,0.00013698,2]
[360864955,1747081846666,-400.0,0.00013698,2]
[360864956,1747081846674,-400.0,0.00013698,2]
[360864957,1747081846683,-160.04909162,0.00013698,2]
[360864958,1747081846693,-400.0,0.00013698,2]
[360864959,1747081846702,-400.0,0.00013698,2]
[360864960,1747081846712,-400.0,0.00013698,2]
[360864961,1747081846721,-400.0,0.00013698,2]
[360864962,1747081846731,-400.0,0.00013698,2]
[360864963,1747081846741,-259.33277071,0.00013698,2]
[360864964,1747081846751,-168.31103297,0.00013698,2]
[360864965,1747081846761,-400.0,0.00013698,2]
[360864967,1747081846771,-400.0,0.00013698,2]
[360864968,1747081846781,-262.69,0.00013698,2]
[360864969,1747081846790,-400.0,0.00013698,2]
[360864970,1747081846799,-400.0,0.00013698,2]
[360864971,1747081846808,-400.0,0.00013698,2]
[360864972,1747081846818,-400.0,0.00013698,2]
[360864973,1747081846827,-400.0,0.00013698,2]
[360864974,1747081846836,-400.0,0.00013698,2]
[360864975,1747081846846,-234.62,0.00013698,2]
[360864976,1747081846855,-410.25485905,0.00013698,2]
[360864977,1747081846864,-400.0,0.00013698,2]
[360864978,1747081846874,-400.0,0.00013698,2]
[360864979,1747081846883,-400.0,0.00013698,2]
[360864980,1747081846892,-355.9,0.00013698,2]
[360864981,1747081846901,-400.0,0.00013698,2]
[360864982,1747081846911,-225.65420465,0.00013698,2]
[360864983,1747081846921,-400.0,0.00013698,2]
[360864984,1747081846930,-400.0,0.00013698,2]
[360864985,1747081846940,-400.0,0.00013698,2]
[360864986,1747081846950,-400.0,0.00013698,2]
[360864987,1747081846959,-508.03749577,0.00013698,2]
[360864988,1747081846971,-194.49,0.00013698,2]
[360864989,1747081846982,-400.0,0.00013698,2]
[360864990,1747081846992,-400.0,0.00013698,2]
[360864991,1747081847002,-400.0,0.00013698,2]
[360864992,1747081847012,-400.0,0.00013698,2]
[360864993,1747081847023,-438.84,0.00013698,2]
[360864994,1747081847032,-400.0,0.00013698,2]
[360864995,1747081847042,-400.0,0.00013698,2]
[360864996,1747081847051,-400.0,0.00013698,2]
[360864997,1747081847060,-400.0,0.00013698,2]
[360864998,1747081847069,-400.0,0.00013698,2]
[360864999,1747081847079,-436.15,0.00013698,2]